bitfinex/quotes_ETHUSD_20241129
["timestamp","ask_amount","ask_price","bid_price","bid_amount"]
[1732904260944,3.34701099,3590.1,3589.6,0.25961729]
[1732904261270,3.34701099,3590.1,3589.7,0.25961729]
[1732904261271,0.56153099,3590.1,3589.7,0.25961729]
[1732904261441,0.56153099,3590.1,3589.8,0.25961729]
[1732904261645,3.0,3590.5,3589.9,0.25967764]
[1732904261974,0.54442202,3590.3,3590.1,0.7938]
[1732904263875,3.32974202,3590.3,3590.1,0.7938]
[1732904264075,2.78542,3590.2,3589.8,0.7632]
[1732904264372,2.78542,3590.2,3589.9,0.25983999]
[1732904264537,2.78542,3590.2,3590.0,0.25988965]
[1732904264738,2.78542,3590.2,3589.8,0.7632]
[1732904264980,0.54442202,3590.3,3589.9,0.25988945]
[1732904265274,0.54442202,3590.3,3590.0,0.25988945]
[1732904265475,3.32971202,3590.3,3590.1,0.25988945]
[1732904265654,2.78536,3590.2,3589.8,0.7632]
[1732904265983,3.32970202,3590.3,3589.9,0.25993113]
[1732904266137,3.32970202,3590.3,3589.8,0.7632]
[1732904266138,3.32970202,3590.3,3590.0,0.25993113]
[1732904266337,3.32970202,3590.3,3590.1,0.25993113]
[1732904266532,0.54442202,3590.3,3589.8,0.7632]
[1732904266737,0.54442202,3590.3,3589.9,3.04551927]
[1732904266986,3.54442202,3590.3,3590.0,0.25998927]
[1732904267146,3.54442202,3590.3,3589.8,3.54885]
[1732904267472,3.54442202,3590.3,3589.9,3.04559417]
[1732904267631,3.54442202,3590.3,3590.0,0.26000417]
[1732904267834,3.54442202,3590.3,3590.1,0.26000417]
[1732904268076,3.54442202,3590.3,3589.9,2.78559]
[1732904268370,0.54442202,3590.3,3590.1,2.78542]
[1732904268539,0.54442202,3590.3,3590.2,0.26000348]
[1732904269070,3.0,3590.6,3590.2,0.26000348]
[1732904269071,5.78505,3590.6,3590.2,0.26000348]
[1732904269386,2.78512,3590.5,3590.3,0.26000348]
[1732904269592,2.78512,3590.5,3589.9,2.78559]
[1732904269738,2.78512,3590.5,3590.0,3.46155582]
[1732904270107,2.78512,3590.5,3590.1,0.67606582]
[1732904270256,2.78512,3590.5,3590.2,0.26002531]
[1732904270446,3.0,3590.6,3590.3,0.26004644]
[1732904270791,0.54423549,3590.5,3590.4,0.26004644]
[1732904271343,5.78471,3591.1,3590.5,0.7556]
[1732904271550,0.55978508,3591.0,3590.6,0.2600534]
[1732904271854,2.78495,3590.8,3590.0,0.7556]
[1732904272057,2.78522,3590.4,3590.1,0.67614373]
[1732904272263,2.78528,3590.3,3590.2,0.26005528]
[1732904272862,2.78519,3590.5,3590.2,0.26005528]
[1732904273073,2.78508,3590.6,3590.0,0.7556]
[1732904273271,2.78521,3590.4,3590.1,0.26017672]
[1732904273478,2.78521,3590.4,3590.2,0.26017672]
[1732904273741,2.78521,3590.4,3590.0,0.7556]
[1732904273977,2.78521,3590.4,3590.1,1.09280125]
[1732904274186,2.78521,3590.4,3590.2,0.2601912]
[1732904274372,2.78521,3590.4,3590.3,0.2601912]
[1732904275278,3.0,3590.1,3589.8,0.41642802]
[1732904275484,3.0,3590.1,3589.9,0.26035469]
[1732904275684,3.0,3590.1,3590.0,0.26035469]
[1732904275860,5.78543,3590.1,3590.0,0.26035469]
[1732904276248,3.0,3590.1,3590.0,0.26035469]
[1732904276956,3.0,3590.1,3590.0,0.26044594]
[1732904277614,5.78528,3590.3,3590.0,0.26044594]
[1732904277889,5.78516,3590.5,3590.1,0.26044594]
[1732904278052,3.0,3590.5,3590.2,0.26044594]
[1732904278253,0.55203815,3590.4,3590.3,0.26044594]
[1732904278689,3.0,3590.5,3590.3,0.26044594]
[1732904278867,3.0,3590.5,3590.4,0.26044594]
[1732904280659,3.56207014,3590.5,3590.4,0.26044594]
[1732904281495,0.56207014,3590.5,3590.4,0.26044594]
[1732904282298,0.56207014,3590.5,3590.2,2.78535]
[1732904282461,0.56207014,3590.5,3590.3,0.26073155]
[1732904282666,0.56207014,3590.5,3590.4,0.26073155]
[1732904282868,2.78468,3591.1,3590.5,0.7583]
[1732904283092,2.78488,3590.9,3590.6,0.26073155]
[1732904283406,2.78494,3590.8,3590.7,0.26073155]
[1732904283760,2.78494,3590.8,3590.5,0.7583]
[1732904283963,2.78494,3590.8,3590.6,0.26068826]
[1732904284277,2.78494,3590.8,3590.7,0.26068826]
[1732904284602,2.78526,3590.4,3590.2,0.7967]
[1732904284771,2.78526,3590.4,3590.3,0.26068792]
[1732904285116,2.7851,3590.6,3590.3,0.26068792]
[1732904285412,2.7851,3590.6,3590.2,0.7967]
[1732904285572,3.0,3590.7,3590.3,0.67774463]
[1732904285773,0.55824295,3590.8,3590.4,0.67773448]
[1732904285969,0.55824295,3590.8,3590.6,2.78499]
[1732904286217,3.34313295,3590.8,3590.7,0.26067104]
[1732904286516,3.0,3591.0,3590.5,2.7851]
[1732904286703,0.34522278,3591.8,3590.6,3.04560653]
[1732904286704,2.78456,3591.3,3590.6,3.04560653]
[1732904287020,5.78458,3591.2,3590.7,0.67756416]
[1732904287203,5.78458,3591.2,3590.8,0.26061653]
[1732904287399,5.78458,3591.2,3590.9,0.26061653]
[1732904287602,3.0,3591.3,3591.0,0.26061653]
[1732904287912,2.78428,3591.6,3591.1,3.83794357]
[1732904288112,2.78428,3591.6,3591.2,0.26050357]
[1732904288344,2.78428,3591.6,3591.3,0.26050357]
[1732904288633,2.78428,3591.6,3591.4,0.26050357]
[1732904288776,2.78428,3591.6,3591.1,3.57744]
[1732904288979,2.78412,3591.8,3591.2,3.46153607]
[1732904289187,3.0,3591.7,3591.3,0.2603723]
[1732904289399,3.0,3591.5,3591.4,0.2603723]
[1732904289603,3.56277827,3591.7,3591.4,0.2603723]
[1732904289879,6.34697827,3591.7,3591.5,0.2603723]
[1732904290086,3.56277827,3591.7,3591.2,2.78457]
[1732904290306,0.56277827,3591.7,3591.3,0.26018481]
[1732904290625,0.56277827,3591.7,3591.4,3.04459481]
[1732904290920,0.56277827,3591.7,3591.5,0.26018481]
[1732904291219,0.56277827,3591.7,3591.4,3.44939094]
[1732904291388,0.56277827,3591.7,3591.5,0.26012924]
[1732904291595,0.56277827,3591.7,3591.4,3.44939094]
[1732904291793,0.56277827,3591.7,3591.4,0.66498094]
[1732904294707,0.56277827,3591.7,3591.4,2.78441]
[1732904295346,0.56277827,3591.7,3591.2,2.78453]
[1732904295506,0.56277827,3591.7,3591.1,3.57743]
[1732904295507,0.56277827,3591.7,3591.1,0.7928]
[1732904295706,2.78448,3591.4,3591.1,0.7928]
[1732904295920,2.78448,3591.4,3590.8,2.78485]
[1732904296137,2.78448,3591.4,3590.9,0.41584711]
[1732904296345,2.78468,3591.1,3590.8,0.7607]
[1732904296709,2.78481,3590.9,3590.8,0.7607]
[1732904297023,2.78481,3590.9,3590.4,2.7852]
[1732904297024,2.78468,3591.1,3590.5,0.7607]
[1732904297329,2.78474,3591.0,3590.5,3.5458]
[1732904297531,2.78474,3591.0,3590.5,1.393812]
[1732904297856,2.78482,3590.9,3590.5,1.393812]
[1732904299666,2.78461,3591.2,3590.5,4.178892]
[1732904299828,2.78461,3591.2,3590.6,3.20103036]
[1732904300030,3.0,3591.3,3591.0,0.04661979]
[1732904300226,0.56277827,3591.7,3591.1,0.828]
[1732904300524,6.34698827,3591.7,3591.2,0.36593298]
[1732904300759,3.0,3591.5,3591.2,0.36593298]
[1732904301138,3.56277827,3591.7,3591.2,3.15050298]
[1732904301345,0.56277827,3591.7,3591.2,3.15050298]
[1732904301543,3.56277827,3591.7,3591.3,0.68376865]
[1732904301870,5.7841,3591.9,3591.3,0.68376865]
[1732904302162,3.0,3591.7,3591.3,0.68376865]
[1732904302371,5.7842,3591.7,3591.3,0.68376865]
[1732904302873,5.78425,3591.7,3591.3,0.68376865]
[1732904303171,0.55405257,3591.8,3591.3,0.68376865]
[1732904303848,0.55405257,3591.8,3591.3,3.46825865]
[1732904304053,3.0,3591.7,3591.3,0.68376865]
[1732904304264,5.78425,3591.7,3591.1,3.61261]
[1732904304660,2.7843,3591.6,3591.1,2.78461]
[1732904304972,2.7843,3591.6,3591.0,0.04661979]
[1732904304973,3.0,3592.3,3591.7,3.59384]
[1732904305126,3.0,3592.1,3591.7,0.8097]
[1732904305326,3.0,3592.3,3591.7,0.8097]
[1732904305637,5.78374,3592.3,3591.7,0.8097]
[1732904305831,5.78374,3592.3,3591.7,3.59388]
[1732904306035,6.35279518,3592.3,3591.7,3.59388]
[1732904306232,7.2664327,3592.3,3591.7,0.8097]
[1732904306968,7.2664327,3592.3,3591.7,3.59388]
[1732904307180,6.35279518,3592.3,3591.7,3.59388]
[1732904307666,2.7834,3592.8,3592.0,0.827]
[1732904307969,2.78342,3592.7,3592.1,2.78383]
[1732904309146,3.0,3592.6,3592.1,2.78383]
[1732904309545,2.78331,3592.9,3592.2,2.78373]
[1732904309747,2.78337,3592.8,3592.1,2.78382]
[1732904309932,2.78331,3592.9,3592.1,0.639475]
[1732904310133,2.78331,3592.9,3592.2,2.78379]
[1732904310673,2.78344,3592.7,3592.1,0.639475]
[1732904310837,3.0,3592.8,3592.2,2.78379]
[1732904311170,3.0,3592.8,3592.3,2.78367]
[1732904311767,3.0,3592.8,3592.5,2.78354]
[1732904311976,3.0,3593.3,3592.6,0.7578]
[1732904312190,3.0,3593.4,3592.7,0.02783123]
[1732904312482,3.0,3593.4,3592.9,2.78321]
[1732904313043,0.56159717,3593.5,3593.1,2.7831]
[1732904313448,3.34442717,3593.5,3593.0,0.8108]
[1732904313738,0.56159717,3593.5,3593.0,0.8108]
[1732904313930,0.56159717,3593.5,3593.0,3.59397]
[1732904314377,0.56159717,3593.5,3593.1,2.81086833]
[1732904314540,0.01267972,3593.6,3593.3,2.78294]
[1732904315649,3.0,3593.7,3593.1,2.81086833]
[1732904316048,2.78265,3593.7,3593.1,2.78304]
[1732904316253,3.0,3593.6,3593.1,2.78304]
[1732904316665,3.0,3593.6,3593.2,0.02782749]
[1732904316985,3.0,3593.6,3593.2,2.81085749]
[1732904317185,0.56477766,3593.7,3593.2,2.81085749]
[1732904317363,0.56477766,3593.7,3593.3,2.7829]
[1732904317567,3.56477766,3593.7,3593.3,2.7829]
[1732904317764,0.56477766,3593.7,3593.0,0.8108]
[1732904317964,2.78281,3593.5,3593.0,0.8108]
[1732904318992,2.78289,3593.4,3593.0,0.8108]
[1732904319349,2.78296,3593.3,3593.0,0.8108]
[1732904319989,2.78296,3593.3,3592.6,0.7952]
[1732904320361,2.78315,3593.1,3592.6,0.7952]
[1732904320559,2.78318,3593.0,3592.3,0.7952]
[1732904320862,2.78339,3592.8,3592.3,0.7952]
[1732904322321,2.78348,3592.7,3592.3,0.7952]
[1732904325003,2.78328,3592.9,3592.3,0.7952]
[1732904325004,3.0,3593.1,3592.6,2.78348]
[1732904325193,3.0,3593.1,3592.7,0.7872]
[1732904325374,5.78312,3593.1,3592.7,0.7872]
[1732904326187,2.78319,3593.0,3592.7,0.7872]
[1732904326578,3.56019491,3593.2,3591.8,0.816]
[1732904326579,2.79523636,3592.8,3591.8,0.816]
[1732904326899,2.78396,3592.0,3591.9,0.41476617]
[1732904327198,3.0,3592.7,3591.8,0.816]
[1732904327199,2.78381,3592.2,3591.8,0.816]
[1732904327396,3.0,3592.5,3591.8,0.816]
[1732904327625,2.78386,3592.2,3591.8,0.816]
[1732904327902,3.0,3592.5,3591.9,3.55896171]
[1732904328076,3.0,3592.5,3592.0,3.19892471]
[1732904328274,2.78319,3593.0,3592.1,0.7741]
[1732904328584,3.0,3592.9,3592.2,3.22654902]
[1732904328791,3.0,3592.9,3592.3,3.19868471]
[1732904329099,3.0,3592.9,3592.4,0.41496471]
[1732904329297,3.0,3593.0,3592.5,0.41496471]
[1732904329498,3.0,3592.8,3592.3,3.51126361]
[1732904329703,3.0,3592.8,3592.4,0.41537601]
[1732904329907,2.78298,3593.3,3592.5,1.18027601]
[1732904330208,2.78309,3593.2,3592.7,0.8024]
[1732904330409,2.78315,3593.1,3592.8,0.41537601]
[1732904330611,2.78315,3593.1,3592.9,0.41537601]
[1732904330773,2.78297,3593.3,3592.7,0.8024]
[1732904330973,2.78297,3593.3,3592.8,0.41562958]
[1732904331201,2.78297,3593.3,3592.9,0.41562958]
[1732904331514,2.78297,3593.3,3593.0,0.41562599]
[1732904331711,2.78297,3593.3,3592.7,1.439354]
[1732904332010,2.78297,3593.3,3592.8,0.41576556]
[1732904332167,2.78297,3593.3,3592.9,0.41576556]
[1732904332369,2.78297,3593.3,3593.0,0.41576556]
[1732904332671,3.34260452,3593.5,3593.1,0.41576556]
[1732904332672,2.78303,3593.2,3593.1,0.41576556]
[1732904332903,2.78303,3593.2,3592.8,0.51990458]
[1732904333105,2.78303,3593.2,3592.7,0.8024]
[1732904333106,2.78305,3593.2,3592.9,0.41593063]
[1732904333309,2.78305,3593.2,3593.0,0.41593063]
[1732904333611,3.0,3593.3,3593.1,0.41594659]
[1732904333770,3.0,3593.3,3593.2,0.41594659]
[1732904334110,3.0,3593.3,3592.9,0.43584968]
[1732904334413,3.0,3593.3,3592.8,2.78333]
[1732904334723,5.78283,3593.5,3592.9,3.16961306]
[1732904335269,5.78283,3593.5,3592.9,3.141783]
[1732904335793,3.0,3593.3,3592.9,3.141783]
[1732904336107,3.33453576,3593.8,3593.3,0.8267]
[1732904336306,0.55191576,3593.8,3593.3,0.8267]
[1732904336780,2.7827,3593.7,3593.3,0.8267]
[1732904336986,3.0,3593.7,3593.3,0.8267]
[1732904337197,5.78247,3594.0,3593.3,0.8267]
[1732904337404,2.78235,3594.1,3593.5,2.78278]
[1732904337714,2.78246,3594.0,3593.3,1.22989461]
[1732904337910,2.78235,3594.1,3593.3,1.22989461]
[1732904337911,2.78235,3594.1,3593.4,2.78282]
[1732904338223,2.78219,3594.3,3593.7,0.8176]
[1732904338224,2.78226,3594.2,3593.7,0.8176]
[1732904338417,2.78219,3594.3,3593.7,0.8176]
[1732904338717,2.78235,3594.1,3593.7,0.8176]
[1732904339120,2.78256,3593.8,3593.4,0.7914]
[1732904339797,2.78244,3594.0,3593.4,0.7914]
[1732904340094,2.78258,3593.8,3593.4,0.7914]
[1732904340782,2.78281,3593.5,3593.0,0.7889]
[1732904340982,2.78281,3593.5,3593.1,0.28147189]
[1732904341417,2.78289,3593.4,3593.1,0.28147189]
[1732904341918,2.78289,3593.4,3593.0,0.7889]
[1732904342229,2.78289,3593.4,3593.1,0.52021082]
[1732904342530,2.78289,3593.4,3593.0,0.7889]
[1732904342735,2.78272,3593.6,3593.1,0.52017742]
[1732904342947,2.78272,3593.6,3593.2,0.52017742]
[1732904343235,2.78272,3593.6,3593.1,0.02782826]
[1732904343528,2.78258,3593.8,3593.2,1.15842714]
[1732904343733,8.56488,3594.0,3593.3,3.30303388]
[1732904343892,3.0,3594.2,3593.6,2.78267]
[1732904344090,5.78227,3594.2,3593.7,0.41606687]
[1732904344322,2.78233,3594.1,3593.6,2.78267]
[1732904344537,2.78233,3594.1,3593.7,0.41598918]
[1732904344741,2.78233,3594.1,3593.5,3.59538]
[1732904344943,2.78233,3594.1,3593.6,3.19869867]
[1732904345103,2.78233,3594.1,3593.7,0.41598867]
[1732904345302,3.54423093,3594.4,3593.6,2.78271]
[1732904345550,3.0,3594.1,3593.7,0.41593169]
[1732904345743,3.0,3594.1,3593.5,0.8126]
[1732904346050,2.78243,3594.0,3593.6,0.41593079]
[1732904346339,5.78234,3594.1,3593.5,3.5954]
[1732904346542,5.78234,3594.1,3593.6,0.41587441]
[1732904346839,2.78245,3594.0,3593.5,0.8126]
[1732904347046,2.78256,3593.8,3593.6,0.41587639]
[1732904347218,2.78249,3593.9,3593.5,0.8126]
[1732904347805,5.78235,3594.1,3593.5,0.8126]
[1732904348026,2.78257,3593.8,3593.5,0.8126]
[1732904349925,2.78257,3593.8,3593.6,0.41575164]
[1732904350144,2.78257,3593.8,3593.5,0.8126]
[1732904350845,2.78257,3593.8,3593.6,0.41571601]
[1732904351005,2.78243,3594.0,3593.5,0.8126]
[1732904351206,2.78243,3594.0,3593.6,0.41572193]
[1732904351406,3.0,3594.1,3593.5,3.59539]
[1732904351647,3.0,3594.1,3593.7,2.78264]
[1732904351948,6.32633093,3594.4,3593.8,0.41569175]
[1732904352117,6.32633093,3594.4,3593.9,0.25980645]
[1732904352323,6.32633093,3594.4,3593.8,2.78256]
[1732904352324,2.78202,3594.6,3594.0,4.29010048]
[1732904352527,2.78202,3594.6,3594.1,0.25980645]
[1732904352765,2.78203,3594.5,3594.2,0.25977167]
[1732904353061,2.7821,3594.4,3594.3,0.25977167]
[1732904353473,3.0,3594.6,3594.3,0.25977167]
[1732904353642,5.78195,3594.6,3594.4,0.25974065]
[1732904353840,5.78195,3594.6,3594.1,2.78233]
[1732904354044,0.56510666,3594.6,3594.2,0.25974301]
[1732904354355,2.78218,3594.3,3593.8,0.41560864]
[1732904354529,2.78218,3594.3,3593.9,0.67537715]
[1732904354739,2.78218,3594.3,3594.0,0.25976851]
[1732904354961,2.78218,3594.3,3594.1,0.25976851]
[1732904355155,5.56413,3594.5,3593.8,3.19815898]
[1732904355373,5.56413,3594.5,3593.9,0.67536729]
[1732904355374,3.0,3594.4,3593.9,0.67536729]
[1732904355527,3.0,3594.4,3594.0,0.25974831]
[1732904355728,3.0,3594.4,3594.1,0.25974831]
[1732904356055,5.7821,3594.4,3594.2,0.25974831]
[1732904356374,5.7821,3594.4,3593.8,2.78254]
[1732904356585,5.7821,3594.4,3593.9,0.67531394]
[1732904356782,2.78223,3594.3,3594.0,0.25973613]
[1732904356958,2.78232,3594.2,3594.1,0.25973613]
[1732904357279,2.78235,3594.1,3593.7,0.8303]
[1732904357464,3.69516767,3594.3,3593.8,0.67579899]
[1732904357646,2.78223,3594.3,3593.9,0.25992269]
[1732904357852,2.78223,3594.3,3594.0,0.25992269]
[1732904358076,2.78223,3594.3,3594.1,0.25991605]
[1732904358246,5.78223,3594.3,3594.2,0.25991605]
[1732904359171,2.78234,3594.1,3593.7,0.8303]
[1732904359383,2.78234,3594.1,3593.8,0.41603482]
[1732904359684,2.78249,3593.9,3593.4,0.8009]
[1732904359897,2.78258,3593.8,3593.5,1.19650813]
[1732904360071,2.78258,3593.8,3593.6,0.6762872]
[1732904360392,2.78258,3593.8,3593.7,0.6762872]
[1732904360692,2.78236,3594.1,3593.7,0.6762872]
[1732904360877,2.78248,3594.0,3593.8,0.26011046]
[1732904361057,2.78241,3594.0,3593.9,0.26011046]
[1732904362209,0.56510666,3594.6,3594.1,2.78232]
[1732904362389,2.78184,3594.8,3594.2,3.91330044]
[1732904362563,2.78187,3594.7,3594.3,0.67648983]
[1732904362763,2.78178,3594.9,3594.4,0.26011046]
[1732904363067,2.78182,3594.8,3594.5,0.26020808]
[1732904363271,2.78182,3594.8,3594.6,0.26020808]
[1732904363538,3.0,3594.7,3594.1,2.78233]
[1732904363661,3.0,3594.6,3594.2,1.19700362]
[1732904363852,3.0,3594.6,3594.3,0.67656881]
[1732904364058,2.78186,3594.8,3594.4,0.67656881]
[1732904364257,3.0,3594.7,3594.5,0.26021877]
[1732904364458,3.0,3594.7,3594.6,0.26021877]
[1732904364698,5.78187,3594.7,3594.6,0.26021877]
[1732904365273,2.7818,3594.8,3594.6,0.26021877]
[1732904365583,3.0,3594.7,3594.6,0.26021877]
[1732904365789,5.78187,3594.7,3594.0,3.59098]
[1732904366099,5.78187,3594.7,3594.1,2.78233]
[1732904366396,5.78187,3594.7,3594.0,3.950078]
[1732904366397,2.782,3594.6,3594.0,3.950098]
[1732904366582,2.782,3594.6,3594.0,3.591]
[1732904367167,2.782,3594.6,3594.1,0.67686018]
[1732904367393,2.782,3594.6,3594.1,0.41652934]
[1732904367610,3.0,3594.7,3594.0,3.591]
[1732904367831,2.78203,3594.5,3594.0,3.591]
[1732904368509,5.78193,3594.7,3594.0,3.591]
[1732904369029,2.78203,3594.5,3594.0,3.591]
[1732904369844,2.78249,3593.9,3593.7,0.819]
[1732904370007,2.78249,3593.9,3593.4,2.78286]
[1732904370338,2.78249,3593.9,3593.4,3.55446]
[1732904370536,2.78243,3594.0,3593.4,3.55446]
[1732904370706,2.78243,3594.0,3593.4,4.188207]
[1732904371232,2.78265,3593.7,3593.4,0.7716]
[1732904371793,2.78261,3593.8,3593.4,0.7716]
[1732904372031,2.78254,3593.9,3593.4,0.7716]
[1732904373020,3.0,3594.3,3593.5,2.78274]
[1732904373320,2.78235,3594.1,3593.5,2.78274]
[1732904373521,2.78235,3594.1,3593.5,3.416464]
[1732904373831,2.7825,3593.9,3593.4,0.7716]
[1732904374004,2.78257,3593.8,3593.4,0.7716]
[1732904375242,2.7825,3593.9,3593.4,0.7716]
[1732904376117,2.78236,3594.1,3593.5,2.7828]
[1732904376657,3.35253913,3594.3,3593.8,0.7602]
[1732904376944,3.35253913,3594.3,3593.9,2.78248]
[1732904376945,0.57033913,3594.3,3593.9,2.78248]
[1732904377143,0.57033913,3594.3,3594.0,2.78236]
[1732904378041,3.0,3594.7,3594.2,3.56704]
[1732904378245,2.78156,3595.1,3594.3,2.78218]
[1732904378402,2.78176,3594.9,3594.3,2.78218]
[1732904378607,2.78179,3594.8,3594.3,2.78218]
[1732904379144,2.78179,3594.8,3594.2,0.7848]
[1732904379311,2.78187,3594.7,3594.2,3.56702]
[1732904380829,2.78187,3594.7,3594.2,0.7848]
[1732904381454,1.20099419,3595.0,3594.2,0.7848]
[1732904381455,2.78184,3594.8,3594.2,3.56703]
[1732904384693,2.78197,3594.6,3594.2,0.7848]
[1732904384957,2.78184,3594.8,3594.2,3.56705]
[1732904385168,2.78177,3594.9,3594.3,2.78217]
[1732904385325,2.7818,3594.8,3594.3,2.78217]
[1732904385520,2.7818,3594.8,3594.2,0.7848]
[1732904385842,2.7818,3594.8,3594.2,3.56704]
[1732904386099,2.7818,3594.8,3594.3,2.80998839]
[1732904386261,3.34751455,3595.0,3594.3,2.80998839]
[1732904386618,3.34751455,3595.0,3594.4,2.78208]
[1732904386853,2.78173,3594.9,3594.4,2.78208]
[1732904387215,2.78173,3594.9,3594.3,2.80998838]
[1732904388647,3.34749455,3595.0,3594.2,3.56702]
[1732904388817,2.78185,3594.8,3594.2,3.56702]
[1732904389022,1.18008764,3595.0,3594.2,3.56702]
[1732904389220,2.78185,3594.8,3594.2,3.56702]
[1732904390461,1.18008764,3595.0,3594.3,2.78216]
[1732904390761,2.78181,3594.8,3594.3,2.78216]
[1732904391126,5.78154,3595.2,3594.5,2.782]
[1732904391358,5.78154,3595.2,3594.6,2.78189]
[1732904391664,5.78154,3595.2,3594.7,0.8164]
[1732904391967,2.78156,3595.1,3594.7,0.8164]
[1732904393671,2.78164,3595.0,3594.7,0.8164]
[1732904393972,2.78179,3594.8,3594.4,0.7615]
[1732904394343,2.78199,3594.6,3594.4,0.7615]
[1732904394552,2.78182,3594.8,3594.2,0.7615]
[1732904394749,2.78182,3594.8,3594.2,3.54376]
[1732904395145,2.78187,3594.7,3594.2,3.54376]
[1732904395350,2.78188,3594.7,3594.2,3.54376]
[1732904395560,2.78195,3594.6,3594.2,0.7615]
[1732904396075,2.78195,3594.6,3593.8,3.415114]
[1732904396076,2.78226,3594.2,3593.8,0.7652]
[1732904396384,3.0,3594.5,3594.0,2.78234]
[1732904396876,5.78204,3594.5,3594.0,2.78234]
[1732904397382,5.78204,3594.5,3593.8,3.54774]
[1732904397383,5.78204,3594.5,3593.8,6.33025]
[1732904397582,5.78204,3594.5,3593.8,3.54771]
[1732904397752,5.78204,3594.5,3593.9,2.78247]
[1732904399158,3.0,3594.5,3594.0,2.78239]
[1732904399479,2.7821,3594.4,3593.8,3.54769]
[1732904399858,2.7821,3594.4,3593.9,2.78248]
[1732904402049,3.69432146,3594.4,3593.9,2.78248]
[1732904402293,3.69432146,3594.4,3593.8,3.54774]
[1732904403046,3.69432146,3594.4,3593.9,2.78248]
[1732904403490,3.0,3594.5,3593.9,2.78248]
[1732904403651,5.78208,3594.5,3593.9,2.78248]
[1732904404350,2.7821,3594.4,3593.9,2.78248]
[1732904404555,2.78218,3594.3,3593.8,0.7652]
[1732904404750,5.78203,3594.5,3593.8,0.7652]
[1732904404971,2.78222,3594.3,3593.7,2.78263]
[1732904405411,0.8299,3594.4,3593.8,2.78255]
[1732904405587,3.61201,3594.4,3593.8,3.59025]
[1732904407382,2.78211,3594.4,3593.8,3.59025]
[1732904407983,2.78225,3594.3,3593.8,0.8077]
[1732904408687,2.78211,3594.4,3593.9,2.78248]
[1732904409211,2.78211,3594.4,3593.8,0.8077]
[1732904409212,2.78223,3594.3,3593.8,0.8077]
[1732904409368,2.78226,3594.2,3593.8,0.8077]
[1732904410370,2.78206,3594.5,3593.8,0.8077]
[1732904410593,3.7737931,3594.5,3593.8,0.8077]
[1732904411009,2.78267,3593.7,3593.0,0.7923]
[1732904411174,2.78251,3593.9,3593.3,2.78293]
[1732904411381,2.78257,3593.8,3593.2,2.78301]
[1732904411915,2.7825,3593.9,3593.3,2.78289]
[1732904412296,2.78253,3593.9,3593.3,2.78289]
[1732904412607,3.0,3594.3,3593.6,2.78267]
[1732904412810,3.0,3594.3,3593.8,2.78256]
[1732904413117,5.78223,3594.3,3593.6,2.78266]
[1732904413273,2.78227,3594.2,3593.7,2.78263]
[1732904413613,3.0,3594.3,3593.9,2.78246]
[1732904413818,3.0,3594.3,3594.0,0.8223]
[1732904414122,5.78221,3594.3,3594.0,0.8223]
[1732904414287,3.0,3594.4,3594.0,0.8223]
[1732904414485,3.0,3594.4,3594.0,3.60471]
[1732904414692,3.0,3594.6,3594.0,3.60471]
[1732904414987,2.78175,3594.9,3594.3,2.78217]
[1732904414988,2.78178,3594.9,3594.3,2.78217]
[1732904415196,2.78178,3594.9,3594.4,3.59559]
[1732904416615,2.78186,3594.8,3594.4,0.8135]
[1732904417316,3.0,3594.9,3594.4,0.8135]
[1732904417743,3.0,3594.9,3594.4,3.59558]
[1732904417887,3.0,3594.9,3594.4,0.8135]
[1732904418082,3.0,3594.9,3594.4,3.59559]
[1732904418509,3.0,3594.9,3594.4,0.8135]
[1732904418785,2.78184,3594.8,3594.4,0.8135]
[1732904419298,2.78188,3594.7,3594.4,0.8135]
[1732904420729,2.78211,3594.4,3593.8,0.8161]
[1732904420890,2.78211,3594.4,3593.6,2.7827]
[1732904420891,2.78234,3594.1,3593.6,2.7827]
[1732904421090,2.78251,3593.9,3593.5,0.7761]
[1732904421526,2.78257,3593.8,3593.5,0.7761]
[1732904421731,2.78237,3594.1,3593.1,0.816]
[1732904421896,2.78237,3594.1,3593.3,2.78293]
[1732904423227,2.78244,3594.0,3593.2,2.78296]
[1732904423433,2.78244,3594.0,3593.4,2.78286]
[1732904424936,2.78249,3593.9,3593.4,2.78286]
[1732904428250,2.78249,3593.9,3593.5,1.19739556]
[1732904428608,2.78249,3593.9,3593.4,2.78286]
[1732904428848,2.78249,3593.9,3593.5,0.67678952]
[1732904429037,0.55063283,3594.3,3593.5,0.67678952]
[1732904429038,2.78239,3594.1,3593.6,1.1416489]
[1732904429232,2.78239,3594.1,3593.6,0.7523]
[1732904430432,2.78244,3594.0,3593.6,0.7523]
[1732904432362,2.78239,3594.1,3593.6,0.7523]
[1732904432522,0.05531652,3593.9,3593.7,2.78259]
[1732904432725,0.05536596,3594.0,3593.7,3.45773289]
[1732904432945,0.55063283,3594.3,3593.8,2.81036275]
[1732904433142,3.33282283,3594.3,3593.8,2.78254]
[1732904433343,3.0,3594.2,3593.8,2.78254]
[1732904433656,0.55063283,3594.3,3593.9,2.78247]
[1732904433866,0.55063283,3594.3,3593.7,3.45774289]
[1732904434171,0.55063283,3594.3,3593.8,0.69927229]
[1732904434324,0.55063283,3594.3,3593.8,3.48183229]
[1732904434677,3.0,3594.2,3593.8,0.69927229]
[1732904434962,3.0,3594.1,3593.7,2.78263]
[1732904436229,0.05542479,3594.0,3593.7,2.78263]
[1732904436966,0.05542479,3594.0,3593.9,3.58829]
[1732904437330,0.01267972,3594.4,3594.2,2.7822]
[1732904437532,0.01267972,3594.4,3594.3,3.56498]
[1732904437778,0.01267972,3594.4,3594.3,4.27089793]
[1732904437986,0.01267972,3594.4,3594.3,4.24307889]
[1732904438137,0.01267972,3594.4,3594.3,4.67688778]
[1732904438338,0.01267972,3594.4,3594.3,4.24307889]